fUSD/lending_fUSD_20240503
["ID","MTS","AMOUNT","RATE_DAILY","PERIOD"]
[325375335,1714776641680,-2309.34852341,0.00024,6]
[325375336,1714776641689,-600.0,0.00024,3]
[325375337,1714776641698,-150.33,0.00024363,2]
[325375338,1714776641707,-2696.80372028,0.00024373,2]
[325375339,1714776641721,-953.56826015,0.00024373,2]
[325375340,1714776641733,-256374.28797246,0.00024373,2]
[325375341,1714776641746,-1578.71698897,0.00024373,2]
[325375342,1714776641758,-596.12154197,0.00024373,2]
[325375343,1714776641768,-631.92132,0.00024373,2]
[325375344,1714776641867,-815.73787278,0.00024373,2]
[325375345,1714776641879,-3325.0,0.00024373,2]
[325375399,1714776642947,-165.0,0.00017288,2]
[325375400,1714776642956,-388297.44826128,0.00024373,2]
[325375401,1714776642966,-177.898224,0.00024373,7]
[325375402,1714776642975,-177.898224,0.00024373,7]
[325375403,1714776642985,-163.159081,0.00024373,7]
[325375404,1714776642994,-163.159081,0.00024373,7]
[325375405,1714776643004,-1094.754816,0.00024373,7]
[325375406,1714776643014,-1094.754816,0.00024373,7]
[325375407,1714776643024,-1000.0,0.00024446,2]
[325375408,1714776643034,-175.89763,0.0002455,2]
[325375410,1714776643043,-172.33008999,0.0002459,2]
[325375412,1714776643053,-2827.75774697,0.00024844,2]
[325375413,1714776643062,-697.66531708,0.00024844,2]
[325375414,1714776643072,-161.42,0.000249,2]
[325375415,1714776643081,-172.33008999,0.00024954,2]
[325375416,1714776643090,-407.62071476,0.00025,2]
[325375417,1714776643099,-2399.52371558,0.00025,7]
[325375418,1714776643108,-34371.6133931,0.00025,2]
[325375419,1714776643117,-155.0,0.00025,2]
[325375420,1714776643126,-5000.0,0.00025,2]
[325375421,1714776643136,-763.40508916,0.00025,2]
[325375422,1714776643145,-658.17437928,0.00025178,2]
[325375423,1714776643155,-294.35452038,0.00025178,5]
[325375424,1714776643164,-153.48804451,0.0002549,2]
[325375425,1714776643172,-150.30568887,0.00025532,2]
[325375426,1714776643182,-1037.54,0.00025903,2]
[325375427,1714776643191,-33418.35703131,0.0002592,2]
[325375428,1714776643200,-650.0,0.00026,3]
[325375429,1714776643209,-163.37849829,0.00026022,2]
[325375430,1714776643218,-404.80063732,0.00026022,2]
[325375431,1714776643227,-152.97580485,0.00026203,2]
[325375432,1714776643236,-1418.10125394,0.000264,2]
[325375433,1714776643247,-647.29213068,0.000264,2]
[325375434,1714776643260,-2852.90333087,0.000264,2]
[325375435,1714776643269,-1838.22075102,0.00026577,2]
[325375436,1714776643278,-953.70124616,0.00026577,2]
[325375437,1714776643287,-1712.39109405,0.00026577,2]
[325375438,1714776643300,-1137.58256528,0.00026577,2]
[325375439,1714776643309,-16256.79125241,0.00026899,2]
[325375440,1714776643319,-693.0,0.00027,3]
[325375441,1714776643328,-34028.92306961,0.00027,7]
[325375442,1714776643337,-500.0,0.00027397,2]
[325375443,1714776643346,-500.0,0.00027397,2]
[325375444,1714776643355,-500.0,0.00027397,2]
[325375445,1714776643364,-500.0,0.00027397,2]
[325375446,1714776643373,-500.0,0.00027397,2]
[325375447,1714776643382,-500.0,0.00027397,2]
[325375448,1714776643390,-500.0,0.00027397,2]
[325375449,1714776643399,-500.0,0.00027397,2]
[325375450,1714776643408,-500.0,0.00027397,2]
[325375451,1714776643418,-500.0,0.00027397,2]
[325375452,1714776643428,-500.0,0.00027397,2]
[325375453,1714776643437,-500.0,0.00027397,2]
[325375454,1714776643446,-500.0,0.00027397,2]
[325375455,1714776643456,-500.0,0.00027397,2]
[325375456,1714776643465,-500.0,0.00027397,2]
[325375457,1714776643474,-500.0,0.00027397,2]
[325375458,1714776643483,-500.0,0.00027397,2]
[325375459,1714776643492,-500.0,0.00027397,2]
[325375460,1714776643501,-500.0,0.00027397,2]
[325375461,1714776643511,-500.0,0.00027397,2]
[325375462,1714776643520,-500.0,0.00027397,2]
[325375463,1714776643529,-500.0,0.00027397,2]
[325375464,1714776643538,-500.0,0.00027397,2]
[325375465,1714776643547,-500.0,0.00027397,2]
[325375466,1714776643556,-500.0,0.00027397,2]
[325375467,1714776643565,-500.0,0.00027397,2]
[325375468,1714776643574,-193.91,0.00027714,2]
[325375469,1714776643584,-161.42,0.000278,2]
[325375470,1714776643593,-2827.75774697,0.00027856,2]
[325375471,1714776643601,-697.66531708,0.00027856,2]
[325375472,1714776643611,-500.0,0.00027856,2]
[325375473,1714776643619,-500.0,0.00027856,2]
[325375474,1714776643630,-500.0,0.00027856,2]
[325375475,1714776643639,-500.0,0.00027856,2]
[325375476,1714776643648,-500.0,0.00027856,2]
[325375477,1714776643658,-500.0,0.00027856,2]
[325375478,1714776643667,-500.0,0.00027856,2]
[325375479,1714776643676,-500.0,0.00027856,2]
[325375480,1714776643686,-500.0,0.00027856,2]
[325375481,1714776643695,-500.0,0.00027856,2]
[325375482,1714776643704,-500.0,0.00027856,2]
[325375483,1714776643713,-500.0,0.00027856,2]
[325375484,1714776643722,-500.0,0.00027856,2]
[325375485,1714776643731,-500.0,0.00027856,2]
[325375486,1714776643741,-500.0,0.00027856,2]
[325375487,1714776643750,-500.0,0.00027856,2]
[325375488,1714776643760,-500.0,0.00027856,2]
[325375489,1714776643769,-500.0,0.00027856,2]
[325375490,1714776643778,-500.0,0.00027856,2]
[325375491,1714776643787,-500.0,0.00027856,2]
[325375492,1714776643796,-500.0,0.00027856,2]
[325375493,1714776643806,-500.0,0.00027856,2]
[325375494,1714776643815,-500.0,0.00027856,2]
[325375495,1714776643824,-500.0,0.00027856,2]
[325375496,1714776643833,-500.0,0.00027856,2]
[325375497,1714776643842,-500.0,0.00027856,2]
[325375498,1714776643853,-500.0,0.00027856,2]
[325375499,1714776643863,-500.0,0.00027856,2]
[325375500,1714776643873,-500.0,0.00027856,2]
[325375501,1714776643882,-500.0,0.00027856,2]
[325375502,1714776643891,-500.0,0.00027856,2]
[325375503,1714776643900,-500.0,0.00027856,2]
[325375504,1714776643909,-500.0,0.00027856,2]
[325375505,1714776643918,-500.0,0.00027856,2]
[325375506,1714776643927,-500.0,0.00027856,2]
[325375507,1714776643936,-268.80011272,0.00027962,2]
[325375508,1714776643945,-150.33,0.00027966,2]
[325375509,1714776643954,-150.0,0.00027975,10]
[325375510,1714776643964,-1269.872327,0.00027976,2]
[325375511,1714776643973,-188.56287425,0.00027976,2]
[325375512,1714776643981,-202.09882263,0.00027976,2]
[325375513,1714776643991,-383.35785337,0.00027976,2]
[325375514,1714776644002,-408.57453561,0.00027976,2]
[325375515,1714776644011,-174.29796734,0.00027976,2]
[325375516,1714776644022,-187.81259505,0.00027976,2]
[325375517,1714776644031,-317.14354643,0.00027976,2]
[325375518,1714776644043,-155.0,0.00027976,2]
[325375519,1714776644053,-274.56654201,0.00027976,2]
[325375520,1714776644061,-155.2737892,0.00027976,2]
[325375521,1714776644071,-155.25122336,0.00027976,2]
[325375522,1714776644081,-159.31200041,0.00027976,2]
[325375523,1714776644091,-2373.58935096,0.00027976,2]
[325375524,1714776644102,-259.05475022,0.00027976,2]
[325375525,1714776644113,-365.10629022,0.00027976,2]
[325375526,1714776644123,-233.06329822,0.00027976,2]
[325375527,1714776644132,-357.08497155,0.00027976,2]
[325375528,1714776644142,-155.0,0.00027976,2]
[325375529,1714776644153,-158.19515389,0.00027976,2]
[325375530,1714776644162,-155.0,0.00027976,3]
[325375531,1714776644171,-224.11246066,0.00027976,2]
[325375532,1714776644180,-2327.64663163,0.00027976,2]
[325375533,1714776644189,-1224.55602433,0.00027976,2]
[325375534,1714776644198,-155.0,0.00027976,2]
[325375535,1714776644208,-155.0,0.00027976,2]
[325375536,1714776644219,-611.07740058,0.00027976,7]
[325375537,1714776644228,-243.42716721,0.00027976,120]
[325375538,1714776644237,-357.65346705,0.00027976,2]
[325375539,1714776644251,-397.03179372,0.00027976,2]
[325375540,1714776644260,-433.10232298,0.00027976,2]
[325375541,1714776644269,-1766.90967601,0.00027976,2]
[325375542,1714776644278,-155.08398474,0.00027976,2]
[325375543,1714776644287,-1777.66560076,0.00027976,2]
[325375544,1714776644298,-1485.425,0.00027976,2]
[325375545,1714776644307,-38367.68141249,0.00027976,2]
[325375547,1714776645802,-155.0,0.00010798,2]
[325375548,1714776645813,-155.0,0.00010798,2]
[325375549,1714776645822,-155.0,0.00010798,2]
[325375550,1714776645832,-1849.76,0.00027976,2]
[325375551,1714776645976,-11982.55464041,0.00027976,2]
[325375577,1714777831904,-150.0,0.00010797,2]
[325375578,1714777831914,-157.41537252,0.00010798,2]
[325375579,1714777831924,-777.7862516,0.00010798,2]
[325375580,1714777831933,-848.01216638,0.00010798,2]
[325375582,1714777831945,-1333.86777006,0.00010798,2]
[325375583,1714777831955,-143.07688056,0.00010798,2]
[325375584,1714777831967,-11.92311944,0.00010798,2]
[325375585,1714777831976,-1325.97003301,0.00010798,2]
[325375586,1714777831985,-1968.61442375,0.00010798,2]
[325375587,1714777831997,-293.43812873,0.00010798,2]
[325375588,1714777832009,-256.90979463,0.00010798,2]
[325375593,1714777832161,-271.60326848,0.00010798,2]
[325375594,1714777832172,-1943.40846493,0.00010798,2]
[325375595,1714777832182,-155.0,0.00010798,2]
[325375596,1714777832192,-3083.85801135,0.00010798,2]
[325375597,1714777832202,-161.68610321,0.00010798,2]
[325375598,1714777832212,-216.27051939,0.00010798,2]
[325375599,1714777832223,-192.95073016,0.00010798,2]
[325375600,1714777832232,-324.18247948,0.00010798,2]
[325375601,1714777832241,-227.82889148,0.00010798,2]
[325375602,1714777832253,-177.33920693,0.00010798,2]
[325375603,1714777832262,-532.78921421,0.00010798,2]
[325375604,1714777832683,-1684.94779618,0.00010798,2]
[325375606,1714777832693,-2357.86048009,0.00010798,2]
[325375608,1714777832703,-968.60947395,0.00010798,2]
[325375610,1714777832713,-538.51236108,0.00010798,2]
[325375612,1714777832728,-280.9082887,0.00010798,2]
[325375656,1714777837936,-165.379977,0.00010797,2]
[325375657,1714777837946,-252.7368488,0.00010798,2]
[325375658,1714777837956,-770.1303,0.000128,2]
[325375659,1714777837966,-275.9474742,0.000128,2]
[325375660,1714777837979,-1728.72368233,0.000128,2]
[325375661,1714777837990,-673.24694347,0.000128,2]
[325375662,1714777838000,-15299.35305673,0.000129,2]
[325375663,1714777838012,-527.13169561,0.000129,2]
[325375664,1714777838024,-1730.56404766,0.000129,2]
[325375665,1714777838034,-1009.8476,0.000129,2]
[325375666,1714777838043,-1478.9979229,0.000129,2]
[325375667,1714777838055,-2513.1320771,0.000129,2]
[325375668,1714777838064,-3633.51458486,0.000129,2]
[325375669,1714777838076,-1113.46114593,0.000129,2]
[325375670,1714777838088,-3520.66396125,0.000129,2]
[325375671,1714777838100,-657.76259654,0.000129,2]
[325375672,1714777838127,-1074.59771142,0.000129,2]
[325375673,1714777838136,-396.1267,0.000129,2]
[325375674,1714777838146,-2677.9275,0.000129,2]
[325375675,1714777838155,-151.21266866,0.000129,2]
[325375676,1714777838165,-5064.2042,0.000129,2]
[325375677,1714777838174,-2500.0,0.000129,2]
[325375678,1714777838184,-19993.40115707,0.000129,2]
[325375679,1714777838194,-301.86281585,0.000129,2]
[325375680,1714777838203,-215.76404356,0.000129,2]
[325375681,1714777838213,-553.55797769,0.000129,2]
[325375682,1714777838224,-553.55797769,0.000129,2]
[325375683,1714777838234,-1298.06356354,0.00012999,3]
[325375684,1714777838243,-1298.06356355,0.00012999,3]
[325375685,1714777838252,-408.3044431,0.00013,2]
[325375686,1714777838261,-4822545.19240262,0.00013,2]
[325375687,1714777838273,-461618.116691,0.00013,2]
[325375688,1714777838285,-391615.43218256,0.00013,2]
[325375689,1714777838298,-583.33520745,0.00013,2]
[325375690,1714777838310,-443.83778674,0.00013,2]
[325375691,1714777838323,-3572.60952,0.00013,2]
[325375700,1714777839995,-338.79383807,0.00013,2]
[325375701,1714777840008,-550.62954119,0.00013,2]
[325375702,1714777840290,-454.18508886,0.00013,2]
[325375703,1714777840301,-35968.62858074,0.00013,2]
[325375704,1714777840313,-879.682941,0.00013,2]
[325375705,1714777840324,-3936.34265508,0.00013,2]
[325375706,1714777840335,-1665.26281578,0.00013,2]
[325375707,1714777840346,-15383.4283066,0.00013,2]
[325375708,1714777840358,-9102.7803848,0.00013,2]
[325375709,1714777840369,-10000.0,0.00013,2]
[325375710,1714777840381,-293.7,0.00013,2]
[325375741,1714777843083,-13968.97310162,0.00013,2]
[325375743,1714777843096,-3792.80059299,0.00013,2]
[325375750,1714777843279,-88123.69278565,0.00013,2]
[325375751,1714777843289,-155.0,0.00013,2]
[325375752,1714777843298,-21778.33854403,0.00013,2]
[325375753,1714777843307,-156.28,0.0001324,2]
[325375754,1714777843316,-150.33,0.00014,2]
[325375755,1714777843327,-3631.0,0.00015,2]
[325375756,1714777843336,-644.0,0.00015,2]
[325375757,1714777843345,-150.99,0.00015,2]
[325375758,1714777843355,-1749.0834379,0.00015,2]
[325375759,1714777843364,-4823.72,0.00015,2]
[325375760,1714777843373,-19993.40115704,0.00015454,2]
[325375761,1714777843382,-499.99,0.00015454,2]
[325375762,1714777843391,-3864.23,0.0001655,2]
[325375763,1714777843401,-1038.05,0.00016683,2]
[325375764,1714777843409,-46895.75,0.00016854,2]
[325375765,1714777843418,-500.0,0.0001686,2]
[325375766,1714777843427,-19999.99,0.0001686,2]
[325375767,1714777843436,-4986.35,0.0001686,2]
[325375768,1714777843445,-29999.99,0.0001686,2]
[325375769,1714777843454,-156.65,0.00016885,2]
[325375770,1714777843463,-250.0,0.00016966,2]
[325375771,1714777843472,-23900.0,0.00016966,2]
[325375772,1714777843483,-250.0,0.00016966,2]
[325375773,1714777843493,-4269.48042187,0.00016997,2]
[325375774,1714777843502,-1061.82742862,0.00016997,2]
[325375775,1714777843511,-445.24209166,0.00016997,2]
[325375776,1714777843521,-527.60952804,0.00016997,2]
[325375777,1714777843531,-281.91054346,0.00016997,2]
[325375778,1714777843540,-617.81945781,0.00016997,2]
[325375779,1714777843549,-1275.82150352,0.00016997,2]
[325375780,1714777843558,-2386.00744514,0.00016997,2]
[325375781,1714777843568,-653.51529413,0.00016997,2]
[325375783,1714777843578,-19455.37067064,0.00016997,2]
[325375785,1714777843587,-409.47154605,0.00016997,2]
[325375786,1714777843597,-11435.13871905,0.00016999,2]
[325375787,1714777843606,-150.99,0.00016999,2]
[325375788,1714777843616,-22788.98881143,0.00016999,2]
[325375789,1714777843625,-299.99,0.00016999,4]
[325375790,1714777843635,-200.0,0.00017078,2]
[325375791,1714777843648,-178.86,0.00017257,2]
[325375792,1714777843658,-152.478,0.00017288,2]
[325375793,1714777843667,-1628.85612917,0.00017481,2]
[325375794,1714777843676,-2751.0,0.00017641,2]
[325375795,1714777843687,-151.77,0.00017662,2]
[325375796,1714777843696,-156.65,0.00017765,2]
[325375797,1714777843705,-869.07412101,0.0001788,2]
[325375798,1714777843715,-869.07412095,0.0001788,2]
[325375799,1714777843728,-1750.04218794,0.0001788,2]
[325375800,1714777843739,-1750.04218789,0.0001788,2]
[325375801,1714777843749,-509.0,0.00017892,2]
[325375802,1714777843758,-450.0,0.00018,3]
[325375803,1714777843768,-19993.40115704,0.00018008,2]
[325375804,1714777843777,-151.77,0.00018245,2]
[325375805,1714777843786,-500.0,0.000185,2]
[325375806,1714777843795,-150.672,0.00018786,2]
[325375807,1714777843804,-181.874,0.00018786,2]
[325375808,1714777843814,-2296.0,0.00018786,2]
[325375809,1714777843823,-1394.0,0.00018786,2]
[325375810,1714777843832,-475.143,0.00018786,2]
[325375811,1714777843841,-970.0,0.00018786,2]
[325375812,1714777843850,-542.0,0.00018786,2]
[325375813,1714777843859,-1227.0,0.00018786,2]
[325375814,1714777843868,-1258.0,0.00018786,2]
[325375815,1714777843877,-1931.0,0.00018786,2]
[325375816,1714777843886,-208.0,0.00018786,2]
[325375817,1714777843895,-808.0,0.00018786,2]
[325375818,1714777843904,-437.0,0.00018786,2]
[325375819,1714777843913,-611.0,0.00018786,2]
[325375820,1714777843922,-421.0,0.00018786,2]
[325375821,1714777843931,-1461.0,0.00018786,2]
[325375822,1714777843941,-1593.207,0.00018786,2]
[325375823,1714777843950,-215.0,0.00018786,2]
[325375824,1714777843959,-444.0,0.00018786,2]
[325375825,1714777843968,-1120.0,0.00018786,2]
[325375826,1714777843977,-1035.563,0.00018786,2]
[325375827,1714777843987,-3568.13,0.00018786,2]
[325375828,1714777843996,-25563.66,0.00018786,2]
[325375829,1714777844005,-2292.0,0.00018786,2]
[325375830,1714777844014,-1055.0,0.00018786,2]
[325375831,1714777844024,-151.77,0.00018828,2]
[325375832,1714777844033,-869.07412095,0.000189,2]
[325375833,1714777844042,-1750.04218789,0.000189,2]
[325375834,1714777844051,-4000.0,0.00019178,2]
[325375835,1714777844061,-151.77,0.00019411,2]
[325375836,1714777844070,-174.6,0.000195,2]
[325375837,1714777844079,-161.43,0.000195,2]
[325375838,1714777844089,-567.0,0.0001965,15]
[325375839,1714777844099,-567.0,0.0001966,15]
[325375840,1714777844108,-567.0,0.0001967,15]
[325375841,1714777844118,-210.43,0.00019675,15]
[325375842,1714777844127,-150.5,0.00019685,15]
[325375843,1714777844136,-425.0,0.00019695,15]
[325375844,1714777844145,-425.0,0.00019705,15]
[325375845,1714777844155,-425.0,0.00019715,15]
[325375846,1714777844164,-500.0,0.00019874,2]
[325375847,1714777844173,-500.0,0.00019882,2]
[325375848,1714777844182,-500.0,0.00019891,2]
[325375849,1714777844191,-500.0,0.000199,2]
[325375850,1714777844200,-156.55480031,0.000199,2]
[325375851,1714777844210,-151.77,0.00019994,2]
[325375852,1714777844219,-24876.58568874,0.0002,2]
[325375853,1714777844229,-1259.16438446,0.0002,2]
[325375854,1714777844239,-5174.91787188,0.0002,2]
[325375855,1714777844248,-6226.02936575,0.0002,2]
[325375856,1714777844257,-500.0,0.0002,3]
[325375857,1714777844266,-860.33884772,0.0002,2]
[325375858,1714777844275,-155.0,0.00020026,2]
[325375859,1714777844285,-200.0,0.00020324,2]
[325375860,1714777844295,-19993.40115704,0.00020562,2]
[325375861,1714777844304,-151.77,0.00020577,2]
[325375862,1714777844315,-151.21266866,0.000209,2]
[325375863,1714777844326,-155.0,0.000209,2]
[325375864,1714777844336,-1000.0,0.00021287,2]
[325375865,1714777844346,-164.15,0.00021644,2]
[325375866,1714777844356,-155.67,0.00021644,2]
[325375867,1714777844365,-942.97,0.00021768,2]
[325375868,1714777844375,-150.0,0.00021786,2]
[325375869,1714777844385,-1227.0,0.00021786,2]
[325375870,1714777844394,-1254.0,0.00021786,2]
[325375871,1714777844403,-1786.0,0.00021786,2]
[325375872,1714777844413,-754.942,0.00021786,2]
[325375873,1714777844422,-432.467,0.00021786,2]
[325375874,1714777844433,-609.0,0.00021786,2]
[325375875,1714777844442,-219.034,0.00021786,2]
[325375876,1714777844453,-213.0,0.00021786,2]
[325375877,1714777844595,-442.0,0.00021786,2]
[325375878,1714777844605,-412.0,0.00021786,2]
[325375879,1714777844615,-869.07412095,0.000219,2]
[325375880,1714777844624,-1750.04218789,0.000219,2]
[325375881,1714777844634,-6756.30981647,0.000219,2]
[325375882,1714777844649,-2000.0,0.00021918,2]
[325375883,1714777844658,-250.0,0.00021918,2]
[325375884,1714777844668,-1871.29,0.00021918,3]
[325375885,1714777844677,-550.0,0.00022,3]
[325375886,1714777844689,-150.35740286,0.00022122,2]
[325375887,1714777844699,-19993.40115704,0.00023116,2]
[325375888,1714777844709,-352.0,0.000233,2]
[325375889,1714777844719,-1000.0,0.000233,2]
[325375890,1714777844733,-669.0,0.000233,2]
[325375891,1714777844743,-400.0,0.00023358,2]
[325375892,1714777844752,-150.35740286,0.00023426,2]
[325375893,1714777844762,-167.0,0.00023685,2]
[325375894,1714777844771,-1000.0,0.00023947,2]
[325375895,1714777844782,-155.0,0.00024,2]
[325375896,1714777844791,-600.0,0.00024,3]
[325375897,1714777844800,-432.0257933,0.00024,2]
[325375898,1714777844809,-155.94311758,0.0002408,2]
[325375899,1714777844819,-150.35740286,0.00024217,2]
[325375900,1714777844829,-167.0,0.00024466,2]
[325375901,1714777844838,-150.35740286,0.00024711,2]
[325375902,1714777844847,-159.6538932,0.00024839,2]
[325375903,1714777844856,-869.07412095,0.000249,2]
[325375904,1714777844865,-1750.04218789,0.000249,2]
[325375905,1714777844875,-11009.5106163,0.00025,3]
[325375906,1714777844885,-5000.0,0.00025,2]
[325375907,1714777844894,-19876.48805673,0.00025,30]
[325375910,1714777846018,-386.34527195,0.000129,2]
[325375911,1714777846754,-86.35514603,0.000129,2]
[325375912,1714777846765,-626.45592037,0.00020026,2]
[325375913,1714777846774,-8120.68532207,0.00025,30]
[325375914,1714777846787,-23087.11406086,0.00025,30]
[325375915,1714777846797,-471.29900356,0.00025,2]
[325375916,1714777846806,-751.50500228,0.00025178,2]
[325375917,1714777846816,-716.17723846,0.00025178,2]
[325375918,1714777846826,-167.0,0.00025248,2]
[325375919,1714777846837,-2607.3114918,0.00025264,2]
[325375920,1714777846846,-4587.97821425,0.00025265,2]
[325375921,1714777846857,-153.77854775,0.00025312,2]
[325375922,1714777846867,-19993.40115704,0.0002567,2]
[325375923,1714777846876,-650.0,0.00026,3]
[325375924,1714777846886,-167.0,0.0002603,2]
[325375925,1714777846896,-400.0,0.00026278,120]
[325375926,1714777846906,-215.76404356,0.000264,2]
[325375927,1714777846916,-153.77854775,0.00026489,2]
[325375928,1714777846926,-150.35740286,0.00026526,2]
[325375929,1714777846936,-392.26263285,0.00026577,2]
[325375930,1714777846945,-1999.82575251,0.00026577,2]
[325375931,1714777846955,-1000.0,0.00026608,2]
[325375932,1714777846964,-167.0,0.00026812,2]
[325375933,1714777846973,-510.34,0.00027089,2]
[325375934,1714777846984,-1628.0,0.000271,2]
[325375935,1714777846994,-1739.85685118,0.00027304,2]
[325375936,1714777847003,-300.0,0.00027397,2]
[325375937,1714777847013,-150.0,0.00027397,2]
[325375938,1714777847023,-713.66,0.00027397,10]
[325375939,1714777847033,-1143.70109671,0.00027416,2]
[325375940,1714777847042,-1058.02861273,0.00027416,2]
[325375941,1714777847052,-212.5114446,0.00027416,2]
[325375942,1714777847062,-1070.84153419,0.00027416,2]
[325375943,1714777847072,-161.43,0.000275,2]
[325375944,1714777847081,-155.3331592,0.00027562,2]
[325375946,1714777847091,-167.0,0.00027594,2]
[325375948,1714777847100,-150.35740286,0.00027594,2]
[325375950,1714777847110,-252.06368396,0.00027696,2]
[325375952,1714777847119,-155.0,0.00027696,2]
[325375954,1714777847129,-172.33008999,0.00027738,2]
[325375956,1714777847138,-200.0,0.00027751,2]
[325375958,1714777847148,-1000.0,0.00027751,10]
[325375960,1714777847157,-500.0,0.00027751,2]
[325375962,1714777847167,-200.0,0.00027752,2]
[325375964,1714777847176,-200.0,0.00027752,2]
[325375966,1714777847186,-200.0,0.00027752,2]
[325375968,1714777847195,-1000.0,0.00027752,10]
[325375970,1714777847205,-1000.0,0.00027752,10]
[325375972,1714777847214,-500.0,0.00027752,2]
[325375974,1714777847222,-500.0,0.00027752,2]
[325375976,1714777847232,-200.0,0.00027752,2]
[325375978,1714777847242,-150.0,0.00027843,2]
[325375980,1714777847251,-342.0,0.000279,2]
[325375982,1714777847261,-869.07412095,0.000279,2]
[325375984,1714777847270,-1750.04218789,0.000279,2]
[325375986,1714777847279,-150.35740286,0.00027913,2]
[325375988,1714777847289,-150.33,0.00027966,2]
[325375990,1714777847299,-1230.90829553,0.00027974,2]
[325375992,1714777847308,-171.42471041,0.00027975,2]
[325375994,1714777847317,-1161.20116657,0.00027975,2]
[325375996,1714777847329,-1000.0,0.00027976,2]
[325375998,1714777847339,-200.0,0.00027976,2]
[325376000,1714777847348,-1171848.11601411,0.00027976,2]
[325376039,1714777847706,-36728.04919,0.00027976,2]
[325376041,1714777847719,-9128.64518387,0.00027976,2]
[325376076,1714777848670,-29742.98815201,0.00027976,2]
[325376077,1714777848682,-253.94151929,0.00027976,2]
[325376078,1714777849234,-361.12954299,0.00027976,2]
[325376092,1714778120271,170.65941402,5e-05,2]
[325376093,1714778184345,399.62720428,5e-05,2]
[325376094,1714778186241,361.59067619,5e-05,2]
[325376095,1714778190752,288.72057434,5e-05,2]
[325376096,1714778191002,546.40139256,4e-05,2]
[325376097,1714778193256,2543.51732737,3.75e-05,2]
[325376098,1714778200242,361.59067619,5e-05,2]
[325376099,1714778204353,399.62720428,5e-05,2]
[325376100,1714778205374,288.72057434,5e-05,2]
[325376101,1714778206994,546.40139256,4e-05,2]
[325376102,1714778212047,196.64917711,3.75e-05,2]
[325376103,1714778212211,943.82673649,5e-05,2]
[325376104,1714778220361,399.62720428,5e-05,2]
[325376105,1714778222759,418.47566741,5e-05,2]
[325376106,1714778223008,546.40139256,4e-05,2]
[325376107,1714778226699,361.59067619,5e-05,2]
[325376108,1714778229856,943.82673649,5e-05,2]
[325376109,1714778244260,361.59067619,4e-05,2]
[325376110,1714778244346,399.62720428,4e-05,2]
[325376111,1714778244997,680.81715271,4e-05,2]
[325376112,1714778251930,951.18873393,5e-05,2]
[325376113,1714778262240,361.59067619,4e-05,2]
[325376114,1714778262392,399.62720428,4e-05,2]
[325376116,1714778278535,361.59067619,4e-05,2]
[325376117,1714778278589,398.49587697,4e-05,2]
[325376118,1714778294246,361.59067619,4e-05,2]
[325376119,1714778310249,361.59067619,4e-05,2]
[325376120,1714778328255,361.59067619,4e-05,2]
[325376121,1714778346260,159.02976834,4e-05,2]
[325376123,1714778603106,1540.650933,0.00010588,2]
[325376124,1714778642987,257.63723368,0.00010588,2]
[325376125,1714778652854,155.0,0.00010588,2]
[325376126,1714778653342,173.22233242,0.00010588,2]
[325376127,1714778653915,408.92665444,0.00010588,2]
[325376128,1714778654951,155.0,0.00010588,2]
[325376129,1714778658968,172.57322676,0.00010588,2]
[325376130,1714778659022,1472.9954589,0.00010588,2]
[325376131,1714778659490,155.0,0.00010588,2]
[325376132,1714778665424,7506.15475185,0.00010588,2]